bitfinex-derivatives/quotes_ETHF0:USTF0_20250105
["timestamp","ask_amount","ask_price","bid_price","bid_amount"]
[1736094816948,3.48183863,3628.3,3627.9,0.24813]
[1736094817145,0.24811,3628.3,3627.9,0.24813]
[1736094817350,5.3977868,3628.5,3627.9,0.24813]
[1736094817547,0.24811,3628.3,3627.9,0.24813]
[1736094818651,0.24811,3628.3,3627.7,1.091]
[1736094818856,2.40395427,3628.4,3628.0,0.24813]
[1736094819151,2.40396427,3628.4,3628.0,0.24813]
[1736094819553,0.24811,3628.3,3628.0,0.24813]
[1736094819757,0.24811,3628.3,3627.9,0.24813]
[1736094820054,2.15585427,3628.4,3627.7,1.091]
[1736094820258,0.24812,3628.2,3627.8,0.24814]
[1736094820852,0.24812,3628.1,3627.8,0.24814]
[1736094821354,5.36365427,3628.4,3627.9,0.24813]
[1736094821559,2.40396427,3628.2,3627.9,0.24813]
[1736094822144,2.15585427,3628.2,3627.7,1.091]
[1736094822352,0.24814,3627.9,3627.7,1.091]
[1736094822556,0.24813,3628.0,3627.7,1.091]
[1736094823150,0.24814,3627.9,3627.7,1.091]
[1736094823352,1.0044,3627.9,3627.7,1.091]
[1736094823557,1.0044,3627.9,3627.7,1.33914]
[1736094825650,0.24812,3628.1,3627.8,0.24814]
[1736094825850,2.15585427,3628.1,3627.7,1.091]
[1736094826048,2.15585427,3628.1,3627.5,1.0809]
[1736094826252,0.24814,3627.9,3627.6,0.24815]
[1736094826547,0.24814,3627.9,3627.5,1.0809]
[1736094826754,0.24814,3627.9,3627.6,0.24815]
[1736094826948,0.24814,3627.9,3627.5,1.0809]
[1736094826949,0.24813,3628.0,3627.7,0.24814]
[1736094827455,0.24814,3627.9,3627.6,0.24815]
[1736094828254,0.24814,3627.8,3627.5,1.32906]
[1736094828459,6.44053253,3627.8,3626.9,4.30406279]
[1736094828758,0.24817,3627.4,3627.1,0.24819]
[1736094829261,0.24816,3627.6,3627.3,0.24817]
[1736094829447,4.2259,3627.8,3626.9,4.30406279]
[1736094829758,4.2259,3627.8,3627.2,3.2078]
[1736094830056,4.2259,3627.8,3627.7,0.24815]
[1736094830354,4.2259,3627.8,3627.3,2.0962]
[1736094830555,4.2259,3627.8,3627.3,3.1872]
[1736094830755,4.2259,3627.8,3627.7,0.24815]
[1736094831754,4.47404,3627.8,3627.6,0.24815]
[1736094832258,4.2259,3627.8,3627.6,0.24815]
[1736094832459,4.47405,3627.8,3627.6,0.24815]
[1736094832853,0.24815,3627.7,3627.5,0.24816]
[1736094833659,0.24815,3627.7,3627.4,0.24817]
[1736094833960,0.24815,3627.7,3627.5,0.24816]
[1736094835857,4.47404,3627.8,3627.6,0.24815]
[1736094836261,4.47404,3627.8,3627.3,2.0962]
[1736094836262,4.2259,3627.8,3627.3,2.0962]
[1736094836566,3.2078,3627.8,3627.7,0.24815]
[1736094836862,2.1537074,3628.0,3627.9,0.24813]
[1736094837355,2.1537074,3628.0,3627.9,1.33913]
[1736094837764,3.2305611,3628.1,3627.9,1.091]
[1736094838066,2.1537074,3628.5,3628.4,0.2481]
[1736094839164,2.1537074,3628.5,3628.0,1.9595]
[1736094839165,2.1537074,3628.6,3628.5,0.24809]
[1736094840560,6.52627071,3629.0,3628.4,1.0737]
[1736094840561,2.1537074,3628.9,3628.4,1.0737]
[1736094840759,2.1537074,3628.9,3628.8,0.24807]
[1736094841666,4.2627,3629.1,3628.7,2.0286]
[1736094841863,2.1537074,3629.2,3629.1,0.24805]
[1736094843061,2.1537074,3629.2,3628.8,3.2078]
[1736094843266,2.1537074,3629.2,3629.0,0.24805]
[1736094843466,0.24804,3629.3,3629.1,0.24805]
[1736094843467,2.4017474,3629.3,3629.1,0.24805]
[1736094844862,2.1537074,3629.2,3629.1,0.24805]
[1736094845968,2.1537074,3629.2,3628.8,3.2078]
[1736094846170,2.1537074,3629.2,3629.1,0.24805]
[1736094849567,0.24806,3629.0,3628.8,0.24807]
[1736094850667,1.0082,3629.1,3628.7,2.0286]
[1736094850872,0.24806,3629.0,3628.8,0.24807]
[1736094852075,3.4099674,3629.1,3628.9,0.24806]
[1736094852268,3.1619074,3629.1,3628.7,2.0286]
[1736094852566,3.4099674,3629.1,3628.9,0.24806]
[1736094854374,1.25626,3629.1,3628.9,0.24806]
[1736094854874,0.24806,3629.0,3628.8,1.33807]
[1736094856372,0.24809,3628.6,3628.5,1.09]
[1736094856565,3.22283253,3629.1,3628.5,1.33809]
[1736094856764,0.24809,3628.6,3628.5,1.33809]
[1736094856980,0.24809,3628.6,3628.5,1.09]
[1736094858864,5.3615074,3628.9,3628.4,1.0737]
[1736094858865,2.21463253,3628.8,3628.4,1.0737]
[1736094859070,0.24811,3628.2,3628.1,4.2978]
[1736094859974,0.24811,3628.3,3628.1,3.2078]
[1736094860674,0.24811,3628.3,3628.1,3.45592]
[1736094861175,4.2240074,3628.4,3628.1,3.2078]
[1736094861481,0.24811,3628.2,3628.1,3.2078]
[1736094863378,4.2240074,3628.4,3628.1,3.2078]
[1736094863678,0.24811,3628.3,3628.1,3.45592]
[1736094864172,0.24811,3628.2,3628.1,3.2078]
[1736094864568,2.21463253,3628.2,3627.8,1.054]
[1736094864779,2.21463253,3628.2,3627.5,1.09]
[1736094864966,0.24814,3627.8,3627.6,0.24815]
[1736094866168,0.9929,3627.7,3627.6,0.24815]
[1736094867276,1.24105,3627.7,3627.5,2.36016]
[1736094868774,0.9929,3627.7,3627.5,2.36016]
[1736094868970,0.24815,3627.6,3627.5,1.022]
[1736094869178,2.46278253,3627.6,3627.5,1.022]
[1736094869484,0.9929,3627.7,3627.2,1.091]
[1736094869776,0.9929,3627.7,3627.2,1.0043]
[1736094869984,0.9929,3627.7,3627.3,1.0335]
[1736094870278,2.4018574,3627.6,3627.4,0.24817]
[1736094870677,2.1537074,3627.6,3627.3,1.0335]
[1736094870883,2.1537074,3627.6,3627.5,0.24816]
[1736094871677,2.1537074,3627.8,3627.7,0.24815]
[1736094872079,2.1537074,3627.8,3627.7,1.33815]
[1736094872872,2.1537074,3628.2,3627.7,1.09]
[1736094873184,2.1537074,3628.2,3627.8,2.0415]
[1736094873378,2.4018274,3628.2,3628.0,0.24813]
[1736094874082,0.24812,3628.2,3628.0,0.24813]
[1736094874385,0.24812,3628.2,3627.9,1.0617]
[1736094874682,0.24812,3628.2,3628.0,0.24812]
[1736094874883,0.9913,3628.1,3628.0,0.24812]
[1736094875276,0.9913,3628.1,3627.9,1.0617]
[1736094875480,0.9913,3628.1,3627.4,4.2978]
[1736094875778,0.9913,3628.1,3627.4,3.2078]
[1736094875779,0.24816,3627.5,3627.4,3.2078]
[1736094876482,0.24816,3627.6,3627.4,3.2078]
[1736094876877,1.0214,3627.5,3627.4,3.45597]
[1736094877282,1.0214,3627.5,3627.4,3.2078]
[1736094877483,1.26956,3627.5,3627.4,3.2078]
[1736094879575,1.26956,3627.5,3627.4,3.45597]
[1736094880789,1.0214,3627.5,3627.4,3.45597]
[1736094880987,1.26956,3627.5,3627.4,3.2078]
[1736094882389,1.26956,3627.5,3627.4,3.45597]
[1736094883194,1.26956,3627.5,3627.4,3.2078]
[1736094883696,1.26956,3627.5,3627.4,3.45597]
[1736094884586,1.0214,3627.5,3627.4,3.45597]
[1736094884780,2.1537074,3627.7,3627.4,3.2078]
[1736094884993,2.1537074,3627.7,3627.6,0.24815]
[1736094886086,3.2078,3627.9,3627.4,5.42243253]
[1736094886286,1.0535,3628.2,3627.4,6.04286253]
[1736094886485,1.30162,3628.2,3628.0,0.24813]
[1736094886682,1.30162,3628.2,3628.1,0.9917]
[1736094886882,1.30162,3628.2,3628.1,3.0722]
[1736094887685,1.0535,3628.2,3628.1,3.32032]
[1736094887884,2.1537074,3628.3,3628.1,3.0722]
[1736094888395,0.24811,3628.3,3628.1,3.32032]
[1736094888791,0.24811,3628.2,3628.1,3.32032]
[1736094889493,0.24811,3628.3,3628.1,3.32032]
[1736094889995,2.1537074,3628.4,3628.2,0.24811]
[1736094890189,0.24811,3628.2,3628.1,3.32032]
[1736094890391,2.1537074,3628.4,3628.1,3.0722]
[1736094890587,2.1537074,3628.4,3628.3,0.24811]
[1736094892494,2.4017874,3628.7,3628.4,0.24809]
[1736094892696,2.4017974,3628.7,3628.4,0.24809]
[1736094892907,1.0279,3628.6,3628.4,0.24809]
[1736094893797,0.24809,3628.5,3628.1,4.1622]
[1736094894096,0.24811,3628.2,3628.1,2.0817]
[1736094894291,3.2078,3628.3,3627.6,0.9923]
[1736094894491,0.24815,3627.6,3627.5,4.30406279]
[1736094895200,0.24815,3627.7,3627.5,0.24816]
[1736094895499,0.24815,3627.7,3627.4,0.24816]
[1736094896294,0.24816,3627.6,3627.4,0.24816]
[1736094897199,2.4018574,3627.7,3627.5,0.24816]
[1736094897495,0.24815,3627.6,3627.4,0.24817]
[1736094898297,2.1537074,3627.7,3627.3,5.1907]
[1736094898499,2.4018574,3627.7,3627.4,0.24817]
[1736094899994,2.1537074,3627.7,3627.4,0.24817]
[1736094900292,2.1537074,3627.6,3627.4,0.24817]
[1736094900494,2.1537074,3627.6,3627.3,7.40533253]
[1736094900690,2.1537074,3627.6,3627.5,0.24816]
[1736094901993,2.1537074,3627.9,3627.7,0.24814]
[1736094902199,2.1537074,3627.9,3627.8,1.0161]
[1736094902794,2.1537074,3627.9,3627.8,1.26424]
[1736094903100,4.4324911,3628.0,3627.8,1.26424]
[1736094904904,4.1843611,3628.0,3627.8,1.0161]
[1736094905203,4.1843611,3628.0,3627.9,0.24813]
[1736094905497,0.9538,3628.0,3627.9,2.32943]
[1736094905702,4.31163818,3628.1,3628.0,0.24813]
[1736094906503,3.90044914,3628.2,3628.0,0.24813]
[1736094907807,3.48683887,3628.2,3628.0,0.24813]
[1736094908405,0.24812,3628.1,3627.9,3.41943]
[1736094908607,1.24032,3628.1,3627.9,3.41943]
[1736094908999,4.47904887,3628.1,3627.9,3.41943]
[1736094909195,4.23092887,3628.1,3627.9,3.41943]
[1736094910299,4.23092887,3628.1,3627.9,3.1713]
[1736094910502,4.47904887,3628.1,3627.9,2.39693]
[1736094911301,1.64952887,3628.1,3628.0,2.46276253]
[1736094911502,4.31163818,3628.2,3628.0,2.21463253]
[1736094911801,4.31163818,3628.2,3628.1,3.45592]
[1736094912394,4.31163818,3628.2,3628.1,4.54592]
[1736094913003,4.31163818,3628.2,3628.1,1.33812]
[1736094913407,2.15913818,3628.2,3628.1,1.33812]
[1736094914307,2.15913818,3628.2,3628.1,0.24812]
[1736094916113,2.15913818,3628.2,3628.1,5.67055253]
[1736094916312,0.41359434,3628.2,3628.1,5.67055253]
[1736094917514,2.15925445,3628.4,3628.1,5.42243253]
[1736094917807,2.15925445,3628.4,3628.2,1.0375]
[1736094918106,2.15925445,3628.4,3628.3,0.24811]
[1736094918411,2.15925445,3628.4,3628.3,1.26121]
[1736094919112,2.15925445,3628.7,3628.6,0.24809]
[1736094919311,2.15925445,3628.7,3628.6,2.46272253]
[1736094920312,2.15925445,3629.0,3628.6,2.21463253]
[1736094920507,2.15925445,3629.0,3628.9,0.24807]
[1736094923104,2.15925445,3629.0,3628.8,1.20717]
[1736094923311,0.24806,3629.0,3628.8,0.24807]
[1736094923509,3.41491445,3629.1,3628.8,0.24807]
[1736094924318,2.15925445,3629.0,3628.8,0.24807]
[1736094925507,2.15925445,3629.0,3628.5,1.9561]
[1736094925508,2.21463253,3628.9,3628.5,0.9605]
[1736094925715,0.2481,3628.5,3628.3,3.4559]
[1736094925915,2.0395,3628.4,3628.3,3.4559]
[1736094926619,2.0395,3628.4,3628.3,0.2481]
[1736094929516,2.2876,3628.4,3628.2,0.24811]
[1736094929721,4.44685445,3628.4,3628.1,0.24812]
[1736094931015,2.15925445,3628.2,3628.1,0.24812]
[1736094931216,2.15925445,3628.2,3627.9,3.1234]
[1736094931717,0.24813,3628.1,3627.9,1.33813]
[1736094931915,2.40737445,3628.2,3628.0,0.24813]
[1736094932120,2.40737445,3628.2,3627.9,0.24813]
[1736094932421,0.24812,3628.1,3627.9,0.24813]
[1736094932622,2.40737445,3628.1,3627.9,0.24813]
[1736094934415,2.15925445,3628.1,3627.4,5.27906279]
[1736094934614,2.15925445,3628.1,3627.5,0.24816]
[1736094935014,0.24815,3627.7,3627.5,0.24816]
[1736094935224,0.9749,3627.6,3627.5,0.24816]
[1736094935625,2.0141,3627.6,3627.5,0.24816]
[1736094936626,2.0141,3627.6,3627.5,2.46279253]
[1736094938024,2.0141,3627.6,3627.5,2.21463253]
[1736094938933,2.15925445,3627.7,3627.6,0.24815]
[1736094939827,2.15925445,3627.8,3627.7,0.24815]
[1736094941731,0.9925,3628.0,3627.9,0.24813]
[1736094943629,0.9925,3628.0,3627.8,0.24814]
[1736094944031,0.9925,3628.0,3627.6,0.24815]
[1736094944338,0.9925,3628.0,3627.8,0.24813]
[1736094944533,3.15175445,3628.0,3627.5,5.42243253]
[1736094944740,3.15175445,3628.0,3627.9,0.24813]
[1736094946748,2.15925445,3628.0,3627.9,0.24813]
[1736094946933,2.15925445,3628.0,3627.9,1.33813]
[1736094947242,2.15925445,3628.0,3627.9,4.54593]
[1736094947437,2.15925445,3628.0,3627.9,6.49483]
[1736094949038,2.15925445,3628.7,3628.6,0.24809]
[1736094958145,2.15925445,3628.7,3628.6,1.23309]
[1736094958753,2.15925445,3629.0,3628.9,0.24807]
[1736094959951,2.15925445,3629.1,3629.0,0.24806]
[1736094961854,5.38954772,3629.7,3628.8,2.21463253]
[1736094961855,2.15925445,3629.5,3629.4,0.24803]
[1736094962048,2.15925445,3629.5,3629.4,1.33803]
[1736094963255,2.15925445,3629.7,3629.6,0.24802]
[1736094963454,2.15925445,3629.7,3629.6,2.46265253]
[1736094965058,8.59734772,3630.3,3629.6,2.46265253]
[1736094965059,5.36705445,3630.3,3629.6,2.21463253]
[1736094965257,5.36705445,3630.3,3630.2,2.46261253]
[1736094965452,2.15925445,3630.3,3630.2,1.33798]
[1736094965755,2.15925445,3630.3,3630.2,3.55261253]
[1736094966351,1.0573,3630.6,3630.4,0.24796]
[1736094967056,2.15925445,3630.7,3630.6,0.24795]
[1736094967257,2.15925445,3630.7,3630.5,0.24795]
[1736094967956,2.15925445,3630.8,3630.6,0.24795]
[1736094968960,2.15925445,3630.8,3630.7,0.24794]
[1736094969464,0.24794,3630.8,3630.5,0.24795]
[1736094969656,0.24793,3630.9,3630.4,0.24796]
[1736094969855,0.24795,3630.7,3630.3,0.24797]
[1736094970057,0.24795,3630.7,3630.2,1.09]
[1736094970258,0.24795,3630.7,3630.5,0.24796]
[1736094970555,7.58168698,3631.0,3630.4,0.24796]
[1736094970757,7.58168698,3631.0,3630.2,1.09]
[1736094971063,0.24795,3630.7,3630.4,0.24796]
[1736094971554,0.24793,3630.9,3630.3,0.24797]
[1736094971760,0.24796,3630.6,3630.3,0.24797]
[1736094971959,0.9654,3630.5,3630.3,0.24797]
[1736094972157,1.9689,3630.5,3630.3,0.24797]
[1736094972863,2.21686,3630.5,3630.3,0.24797]
[1736094973050,3.24726,3630.5,3630.3,0.24797]
[1736094973558,3.24726,3630.5,3630.1,1.09]
[1736094973559,2.9993,3630.5,3630.1,1.09]
[1736094973954,2.9993,3630.5,3630.3,0.24797]
[1736094975253,3.24726,3630.5,3630.3,0.24797]
[1736094975660,6.2071,3630.5,3629.9,3.2078]
[1736094975859,0.24799,3630.1,3629.9,1.338]
[1736094976057,1.0217,3630.0,3629.9,1.338]
[1736094977251,1.0217,3630.0,3629.5,3.2078]
[1736094977458,3.2078,3629.7,3629.3,1.09]
[1736094977662,0.24803,3629.5,3629.3,1.09]
[1736094978157,1.0475,3629.4,3629.3,1.09]
[1736094978353,1.0475,3629.4,3628.7,3.23583253]
[1736094978553,1.0475,3629.4,3628.7,4.32583253]
[1736094978759,1.0475,3629.4,3629.0,2.21463253]
[1736094979065,1.0475,3629.4,3629.1,0.24805]
[1736094979362,1.0475,3629.4,3629.2,0.24804]
[1736094979560,1.0475,3629.4,3629.1,0.24805]
[1736094980161,0.24804,3629.3,3629.0,2.46269253]
[1736094980458,1.0432,3629.2,3629.0,2.21463253]
[1736094980666,1.0432,3629.2,3628.7,1.09]
[1736094980667,0.24807,3628.9,3628.7,1.09]
[1736094980862,1.0424,3628.8,3628.7,1.09]
[1736094981259,1.29047,3628.8,3628.4,3.4559]
[1736094981560,4.2502,3628.8,3628.2,1.09]
[1736094981965,0.24809,3628.6,3628.2,1.33811]
[1736094982268,1.0432,3628.5,3628.2,0.24811]
[1736094984363,1.0432,3628.5,3628.1,3.30463253]
[1736094984759,1.2913,3628.5,3628.2,0.24811]
[1736094985570,1.0432,3628.5,3628.2,0.24811]
[1736094985972,1.0432,3628.5,3628.3,0.24811]
[1736094987366,1.0432,3628.5,3628.1,3.30463253]
[1736094987574,1.0432,3628.5,3628.3,0.24811]
[1736094987867,1.0432,3628.5,3628.4,0.2481]
[1736094989869,4.2502,3628.8,3628.4,2.21463253]
[1736094990083,4.2502,3628.8,3628.7,0.24808]
[1736094990663,4.2502,3628.8,3628.4,3.16663253]
[1736094990869,4.2502,3628.8,3628.7,0.24808]
[1736094994372,1.0424,3628.8,3628.7,0.24808]
[1736094995270,0.9697,3629.0,3628.9,0.24807]
[1736094997380,1.21776,3629.0,3628.4,5.42243253]
[1736094997580,0.9697,3629.0,3628.9,0.24807]
[1736094999278,1.21776,3629.0,3628.9,0.24807]
[1736094999779,0.24807,3628.9,3628.4,5.42243253]
[1736094999976,0.9697,3629.0,3628.7,0.24808]
[1736095000179,0.24807,3628.9,3628.7,0.24808]
[1736095001683,0.24811,3628.3,3628.2,1.21961]
[1736095002280,0.24811,3628.3,3628.2,0.9715]
[1736095004585,0.9856,3628.7,3628.2,0.9715]
[1736095004881,0.2481,3628.5,3628.2,1.21961]
[1736095005081,7.03359235,3628.6,3628.4,0.2481]
[1736095005287,0.9856,3628.7,3628.2,0.9715]
[1736095005582,0.24809,3628.5,3628.3,0.2481]
[1736095006477,0.24809,3628.5,3628.4,0.2481]
[1736095006682,0.9856,3628.7,3628.3,0.2481]
[1736095006981,0.2481,3628.4,3628.3,0.24811]
[1736095008374,0.2481,3628.4,3628.2,0.9715]
[1736095008578,0.2481,3628.4,3628.3,0.24811]
[1736095008886,0.9856,3628.7,3627.9,1.09]
[1736095009083,1.60802,3628.6,3627.9,1.09]
[1736095009281,0.24812,3628.1,3627.9,1.33813]
[1736095009483,0.24812,3628.1,3627.9,1.09]
[1736095010084,0.24812,3628.1,3627.9,1.33813]
[1736095010284,0.24812,3628.1,3627.9,0.24813]
[1736095011086,0.9878,3628.6,3628.0,0.24813]
[1736095011287,0.24811,3628.2,3628.0,0.24813]
[1736095011791,0.9856,3628.7,3628.1,2.21463253]
[1736095011985,0.9856,3628.7,3628.5,0.24809]
[1736095011986,1.23368,3628.7,3628.5,0.24809]
[1736095012286,2.15925445,3628.8,3628.7,0.24808]
[1736095013483,2.40732445,3628.8,3628.7,0.24808]
[1736095013676,0.24807,3628.8,3628.7,0.24808]
[1736095015481,0.24808,3628.8,3628.6,0.24808]
[1736095015685,0.24807,3628.9,3628.7,0.24807]
[1736095016275,0.24808,3628.7,3628.6,0.24809]
[1736095017878,0.24809,3628.6,3628.5,0.9457]
[1736095018091,2.15925445,3628.9,3628.3,0.24811]
[1736095018092,0.2481,3628.4,3628.3,0.24811]
[1736095018291,0.9205,3628.5,3628.4,0.24809]
[1736095018589,0.24809,3628.6,3628.2,0.9011]
[1736095018982,3.07975445,3628.8,3628.4,0.2481]
[1736095019287,0.24809,3628.5,3628.4,0.2481]
[1736095019492,0.24808,3628.7,3628.6,0.24809]
[1736095019993,3.07975445,3628.8,3628.4,2.21463253]
[1736095020193,3.32783445,3628.8,3628.7,0.24808]
[1736095020490,4.3945183,3628.8,3628.7,0.24808]
[1736095020683,3.2259383,3628.8,3628.7,2.46271253]
[1736095022090,5.38954772,3629.2,3629.0,0.24806]
[1736095022091,2.15731992,3629.1,3629.0,0.24806]
[1736095022282,2.15731992,3629.1,3629.0,3.55269253]
[1736095023293,2.15731992,3629.1,3629.0,3.30463253]
[1736095023487,2.15731992,3629.1,3628.8,2.9176]
[1736095023700,0.24807,3628.9,3628.7,1.09]
[1736095023994,0.24807,3628.9,3628.8,4.32846649]
[1736095025091,0.41347627,3628.9,3628.7,1.09]
[1736095025282,0.24807,3628.8,3628.7,1.09]
[1736095025986,0.24808,3628.7,3628.5,0.24809]
[1736095027288,4.73416958,3628.8,3628.6,0.24809]
[1736095027483,0.41347627,3628.6,3628.4,4.09623253]
[1736095027684,0.41347627,3628.6,3628.5,0.24809]
[1736095028592,5.38954772,3629.0,3628.4,4.09623253]
[1736095028593,0.41347627,3628.7,3628.4,4.09623253]
[1736095028787,0.41347627,3628.7,3628.6,0.24809]
[1736095031294,3.24120894,3628.7,3628.6,0.24809]
[1736095032791,0.24000894,3628.7,3628.6,5.24809]
[1736095032986,3.47506694,3628.9,3628.8,0.24807]
[1736095033192,2.16098591,3629.1,3628.8,7.21463253]
[1736095033389,2.16098591,3629.1,3629.0,0.24806]
[1736095034491,2.16098591,3629.6,3629.0,10.21542453]
[1736095034797,2.16098591,3629.6,3629.5,0.24803]
[1736095036298,3.07688591,3629.6,3629.5,0.24803]
[1736095037695,0.9159,3629.6,3629.5,0.24803]
[1736095038593,0.9159,3629.6,3629.4,2.46266253]
[1736095038900,0.9159,3629.6,3629.4,2.21463253]
[1736095039199,0.9159,3629.6,3629.5,0.24803]
[1736095042694,2.16098591,3629.8,3629.7,0.24801]
[1736095042901,2.16098591,3629.9,3629.8,0.248]
[1736095044303,2.16098591,3629.9,3629.8,1.2093]
[1736095044499,1.9412,3630.3,3629.8,0.9613]
[1736095044693,1.9412,3630.3,3630.2,2.46261253]
[1736095053205,0.992,3630.3,3630.2,2.46261253]
[1736095053512,0.992,3630.3,3630.2,0.24798]
[1736095056303,0.9581,3630.7,3630.5,0.24795]
[1736095056304,0.9594,3630.6,3630.5,0.24795]
[1736095056604,0.9594,3630.6,3630.5,3.55158253]
[1736095060407,0.9594,3630.6,3630.5,3.30363253]
[1736095061615,0.9594,3630.6,3630.5,3.55159253]
[1736095061811,0.9594,3630.6,3630.5,1.089]
[1736095061812,1.20735,3630.6,3630.5,1.089]
[1736095062015,0.24797,3630.3,3630.2,3.30363253]
[1736095062308,0.24797,3630.4,3630.2,3.55160253]
[1736095064312,3.45576,3630.5,3630.2,3.55160253]
[1736095065218,0.24796,3630.4,3630.2,3.55160253]
[1736095065409,3.45576,3630.5,3630.3,0.24797]
[1736095065807,0.24797,3630.4,3630.2,3.55160253]
[1736095067015,3.45576,3630.5,3630.2,3.55160253]
[1736095067408,3.2078,3630.5,3630.2,3.30363253]
[1736095067611,3.2078,3630.5,3630.4,0.24796]
[1736095067913,0.9594,3630.6,3630.5,0.24796]
[1736095068110,0.9594,3630.6,3630.5,2.46259253]
[1736095077128,0.9594,3630.6,3630.1,3.2078]
[1736095077323,1.20735,3630.6,3630.2,1.089]
[1736095077519,0.9594,3630.6,3630.2,3.30363253]
[1736095077726,0.9594,3630.6,3630.4,0.24796]
[1736095078329,0.9594,3630.6,3630.2,3.30363253]
[1736095078635,0.9594,3630.6,3630.5,0.24796]
[1736095079624,0.9594,3630.6,3630.2,3.30363253]
[1736095079829,0.9594,3630.6,3630.4,0.24796]
[1736095080536,0.9594,3630.6,3630.5,0.24796]
[1736095081335,3.12038591,3630.6,3630.5,0.24796]
[1736095082634,0.9594,3630.6,3630.5,0.24796]
[1736095085351,0.9594,3630.6,3630.5,2.46259253]
[1736095085551,3.12038591,3630.6,3630.5,2.46259253]
[1736095088448,0.9594,3630.6,3630.5,2.46259253]
[1736095090249,0.9594,3630.6,3630.5,6.79128239]
[1736095090951,0.9594,3630.6,3630.5,5.57844715]
[1736095091648,1.37273559,3630.6,3630.5,5.57844715]
[1736095092847,1.37273559,3630.6,3630.5,9.48899549]
[1736095093351,0.41333559,3630.6,3630.5,12.69679549]
[1736095093552,0.41333559,3630.6,3630.5,13.63359549]
[1736095093757,2.16232655,3630.6,3630.5,15.55177485]
[1736095093956,2.16232655,3630.6,3630.5,15.79973485]
[1736095094554,2.16232655,3630.6,3630.5,14.86293485]
[1736095094960,2.16232655,3630.7,3630.5,4.91234563]
[1736095095161,2.16232655,3630.7,3630.6,0.24795]
[1736095096463,3.24348983,3630.8,3630.7,0.24794]
[1736095096656,3.24348983,3630.8,3630.7,1.24973729]
[1736095097559,3.24348983,3630.8,3630.7,5.58413522]
[1736095103365,2.16169768,3630.8,3630.7,11.66028929]
[1736095103961,2.16169768,3630.8,3630.7,12.66208658]
[1736095104158,3.24348983,3631.0,3630.7,12.41414658]
[1736095104465,4.30302931,3631.2,3630.9,5.21139458]
[1736095104765,4.30302931,3631.2,3631.1,2.25151458]
[1736095105062,3.24239995,3631.2,3631.1,2.25151458]
[1736095105261,3.24239995,3631.2,3631.1,2.26671458]
[1736095106368,6.65e-06,3631.4,3631.3,2.25149458]
[1736095106666,6.65e-06,3632.1,3632.0,0.24785]
[1736095106867,6.65e-06,3632.1,3632.0,3.34044458]
[1736095107065,6.65e-06,3632.1,3632.0,3.55422331]
[1736095108467,2.8573,3632.3,3632.0,3.30637331]
[1736095108668,2.8573,3632.3,3632.2,0.24784]
[1736095110168,2.8573,3632.3,3632.2,1.33684]
[1736095111569,9.28911596,3632.9,3632.7,0.2478]
[1736095111766,2.8658,3632.8,3632.7,0.24781]
[1736095111971,2.8658,3632.8,3632.2,1.089]
[1736095113265,2.8658,3632.8,3632.7,0.24781]
[1736095117465,2.8658,3632.8,3632.6,1.088]
[1736095117668,3.11361,3632.8,3632.6,1.088]
[1736095118466,2.8658,3632.8,3632.6,1.33581]
[1736095119874,2.8658,3632.8,3632.7,0.24781]
[1736095123075,2.8658,3632.8,3632.6,3.30537331]
[1736095123268,2.8658,3632.8,3632.6,1.088]
[1736095123571,3.1136,3632.8,3632.6,1.088]
[1736095124076,0.24781,3632.7,3632.6,1.088]
[1736095124274,3.1136,3632.8,3632.6,1.088]
[1736095124774,2.8658,3632.8,3632.3,2.21737331]
[1736095125075,3.1136,3632.8,3632.6,1.088]
[1736095126474,2.8658,3632.8,3632.1,3.2078]
[1736095126671,0.24784,3632.2,3632.1,4.2958]
[1736095127872,0.24784,3632.3,3632.1,4.2958]
[1736095128071,3.2078,3632.6,3631.7,5.42517331]
[1736095128072,0.24785,3632.1,3631.7,5.42517331]
[1736095128379,0.9951,3632.0,3631.7,3.2078]
[1736095128677,0.24787,3631.9,3631.6,4.32457752]
[1736095128875,0.24787,3631.7,3631.6,4.32457752]
[1736095129076,3.45567,3631.7,3631.6,2.81657752]
[1736095129285,3.2078,3631.7,3631.4,1.088]
[1736095129576,0.24789,3631.5,3631.4,1.088]
[1736095132881,0.2479,3631.4,3631.1,0.24792]
[1736095133069,2.1448,3631.4,3631.1,0.24792]
[1736095133269,1.0011,3631.3,3631.0,4.2958]
[1736095133479,1.24901,3631.3,3631.0,4.54372]
[1736095133876,1.0011,3631.3,3631.1,0.24791]
[1736095134073,1.24901,3631.3,3631.0,4.54372]
[1736095134278,1.24901,3631.3,3631.0,4.2958]
[1736095134880,1.0011,3631.3,3631.0,4.54372]
[1736095135479,1.249,3631.3,3631.0,4.54372]
[1736095135681,1.249,3631.3,3631.0,1.33592]
[1736095135881,1.0011,3631.3,3631.0,1.33592]
[1736095136972,1.0011,3631.3,3631.0,0.24792]
[1736095137173,1.0011,3631.3,3631.1,1.089]
[1736095137675,1.0011,3631.3,3631.1,1.33691]
[1736095137885,1.0011,3631.3,3631.1,1.089]
[1736095140384,1.249,3631.3,3631.1,1.089]
[1736095140591,1.0011,3631.3,3631.1,1.33691]
[1736095142179,1.249,3631.3,3631.1,1.089]
[1736095144587,1.0011,3631.3,3631.1,1.089]
[1736095144786,1.0011,3631.3,3631.1,1.33692]
[1736095145088,1.0011,3631.3,3631.1,1.089]
[1736095145289,1.24901,3631.3,3631.1,1.089]
[1736095146185,1.0011,3631.3,3631.1,1.33691]
[1736095147194,1.0011,3631.3,3631.2,1.00151562]
[1736095150893,1.249,3631.3,3631.2,1.00151562]
[1736095151095,1.0011,3631.3,3631.2,1.00151562]
[1736095151594,1.249,3631.3,3631.2,1.00151562]
[1736095152491,1.0011,3631.3,3631.2,1.00151562]
[1736095152692,1.249,3631.3,3631.2,1.00151562]